{"text_format":"1","workbook":"xlsx","n_sheets":21,"sheets":["Introduction","Tool Guide","Start"," Results - Upstream"," Results - Downstream","U1 - Policy & Nat Regs","U2 - Security of Expl","U3 - IED Risk Education","U4 - C-IED Cap Dev","U5 - Border Ctrl","U6 - IED Precursors","U7 - Cooperation","U8 - Intel Led Ops","D1 - IED Render Safe","D2 - IED Scene Expl","D3 - Evidence Analysis","D4 - Info Mgmt","D5 - Tech Expl","D6 - ID of Perps","D7 - Judicial Process","D8 - Development of IED CM"],"not_rendered":{"charts":2,"images":1,"macros":1,"external_links":0,"defined_names":0,"comments":0,"pivot_tables":0},"unopened":[],"bounds":{"document_bytes":16777216,"sheet_cells":100000,"rows_first":2000,"rows_last":500,"rows_between":2000,"halvings":0,"cell_chars":16384,"cell_head_chars":4096},"cells_cut":0,"cells_raw":0,"read":"whole","date_system":"1900"}

{"sheet":"Introduction","index":0,"n_rows":1,"n_cols":8,"rows_kept":1,"cut":false,"hidden":false,"merged":[[0,7,0,11]]}
[null,null,null,null,null,"Counter-IED Capability Maturity Self-Assessment Tool",null,"Before using this document, make sure you have enabled macros on Excel."]

{"sheet":"Tool Guide","index":1,"n_rows":1,"n_cols":6,"rows_kept":1,"cut":false,"hidden":false,"merged":[[0,5,0,10]]}
[null,null,null,null,null,"Counter-IED Capability Maturity Self-Assessment Tool"]

{"sheet":"Start","index":2,"n_rows":9,"n_cols":2,"rows_kept":9,"cut":false,"hidden":false,"merged":[]}
[null,"Counter-IED Capability Maturity Self-Assessment Tool"]
[]
["Date of Assessment:","2020-07-01"]
[]
["Assessment Description:","Country X"]
[]
["Name(s) of Assessor(s):","A Author"]
[]
["Notes:","This is a free text box"]

{"sheet":" Results - Upstream","index":3,"n_rows":24,"n_cols":3,"rows_kept":24,"cut":false,"hidden":false,"merged":[[0,2,0,4]]}
[null,null,"Counter-IED Capability Maturity Self-Assessment Tool"]
["Upstream Counter-IED Measures - Summary of Counter-IED Capability Maturity"]
["Upstream Components of Counter-IED Capability"]
[]
["Component of Counter-IED Capability","CMM Level"]
[]
["U1 - National Policy, Regulations and Legislation",{"$f":"'U1 - Policy & Nat Regs'!M5","v":1}]
["U2 - Security and Control of Explosives",{"$f":"'U2 - Security of Expl'!M5","v":1}]
["U3 - IED Risk Education",{"$f":"'U3 - IED Risk Education'!M5","v":1}]
["U4 - Counter-IED Capability Development",{"$f":"'U4 - C-IED Cap Dev'!M5","v":1}]
["U5 - Border Controls",{"$f":"'U5 - Border Ctrl'!M5","v":1}]
["U6 - Control of IED Precursors",{"$f":"'U6 - IED Precursors'!M5","v":1}]
["U7 - International Cooperation and Info Sharing",{"$f":"'U7 - Cooperation'!M5","v":1}]
["U8 - Intelligence-Led Operations",{"$f":"'U8 - Intel Led Ops'!M5","v":1}]
[]
[]
["Mean Upstream Counter IED Maturity Level",{"$f":"AVERAGE(B7:B14)","v":1}]
[]
[]
[]
[]
["Date:",{"$f":"Start!B3","v":"2020-07-01"}]
["Assessment Description:",{"$f":"Start!B5","v":"Country X"}]
["Assessor(s):",{"$f":"Start!B7","v":"A Author"}]

{"sheet":" Results - Downstream","index":4,"n_rows":24,"n_cols":3,"rows_kept":24,"cut":false,"hidden":false,"merged":[[0,2,0,5]]}
[null,null,"Counter-IED Capability Maturity Self-Assessment Tool"]
["Downstream Counter-IED Measures - Summary of Counter-IED Capability Maturity"]
["Downstream Components of Counter-IED Capability"]
[]
["Component of Counter-IED Capability","CMM Level"]
[]
["D1 - IED Response (Render Safe)",{"$f":"'D1 - IED Render Safe'!M5","v":1}]
["D2 - IED Response (Scene Exploitation)",{"$f":"'D2 - IED Scene Expl'!M5","v":1}]
["D3 - Recovered Evidence Analysis",{"$f":"'D3 - Evidence Analysis'!M5","v":1}]
["D4 - Information Management",{"$f":"'D4 - Info Mgmt'!M5","v":1}]
["D5 - Technical Exploitation of Recovered IEDs",{"$f":"'D5 - Tech Expl'!M5","v":1}]
["D6 - Identification of Perpetrators",{"$f":"'D6 - ID of Perps'!M5","v":1}]
["D7 - Judicial Process",{"$f":"'D7 - Judicial Process'!M5","v":1}]
["D8 - Development of IED Countermeasures",{"$f":"'D8 - Development of IED CM'!M5","v":1}]
[]
[]
["Mean Downstream Counter IED Maturity Level",{"$f":"AVERAGE(B7:B14)","v":1}]
[]
[]
[]
[]
["Date:",{"$f":"Start!B3","v":"2020-07-01"}]
["Assessment Description:",{"$f":"Start!B5","v":"Country X"}]
["Assessor(s):",{"$f":"Start!B7","v":"A Author"}]

{"sheet":"U1 - Policy & Nat Regs","index":5,"n_rows":5,"n_cols":13,"rows_kept":5,"cut":false,"hidden":false,"merged":[[0,6,0,11]]}
[null,null,null,null,null,null,"Counter-IED Capability Maturity Self-Assessment Tool"]
["Upstream Counter-IED Measures - National Policy, Legislation and Regulations"]
[]
[]
[null,null,null,null,null,null,null,"Assessed Counter-IED Maturity Level:",null,null,null,null,1]

{"sheet":"U2 - Security of Expl","index":6,"n_rows":5,"n_cols":13,"rows_kept":5,"cut":false,"hidden":false,"merged":[[0,6,0,11]]}
[null,null,null,null,null,null,"Counter-IED Capability Maturity Self-Assessment Tool"]
["Upstream Counter-IED Measures - Security & Control of Explosives"]
[]
[]
[null,null,null,null,null,null,null,"Assessed Counter-IED Maturity Level:",null,null,null,null,1]

{"sheet":"U3 - IED Risk Education","index":7,"n_rows":5,"n_cols":13,"rows_kept":5,"cut":false,"hidden":false,"merged":[[0,6,0,11]]}
[null,null,null,null,null,null,"Counter-IED Capability Maturity Self-Assessment Tool"]
["Upstream Counter-IED Measures - IED Risk Education"]
[]
[]
[null,null,null,null,null,null,null,"Assessed Counter-IED Maturity Level:",null,null,null,null,1]

{"sheet":"U4 - C-IED Cap Dev","index":8,"n_rows":5,"n_cols":13,"rows_kept":5,"cut":false,"hidden":false,"merged":[[0,6,0,11]]}
[null,null,null,null,null,null,"Counter-IED Capability Maturity Self-Assessment Tool"]
["Upstream Counter-IED Measures - Counter-IED Capability Development"]
[]
[]
[null,null,null,null,null,null,null,"Assessed Counter-IED Maturity Level:",null,null,null,null,1]

{"sheet":"U5 - Border Ctrl","index":9,"n_rows":5,"n_cols":13,"rows_kept":5,"cut":false,"hidden":false,"merged":[[0,6,0,11]]}
[null,null,null,null,null,null,"Counter-IED Capability Maturity Self-Assessment Tool"]
["Upstream Counter-IED Measures - Border Controls"]
[]
[]
[null,null,null,null,null,null,null,"Assessed Counter-IED Maturity Level:",null,null,null,null,1]

{"sheet":"U6 - IED Precursors","index":10,"n_rows":5,"n_cols":13,"rows_kept":5,"cut":false,"hidden":false,"merged":[[0,6,0,11]]}
[null,null,null,null,null,null,"Counter-IED Capability Maturity Self-Assessment Tool"]
["Upstream Counter-IED Measures - Controls of IED Precursors"]
[]
[]
[null,null,null,null,null,null,null,"Assessed Counter-IED Maturity Level:",null,null,null,null,1]

{"sheet":"U7 - Cooperation","index":11,"n_rows":5,"n_cols":13,"rows_kept":5,"cut":false,"hidden":false,"merged":[[0,6,0,11]]}
[null,null,null,null,null,null,"Counter-IED Capability Maturity Self-Assessment Tool"]
["Upstream Counter-IED Measures - Regional and International Cooperation and Information Sharing"]
[]
[]
[null,null,null,null,null,null,null,"Assessed Counter-IED Maturity Level:",null,null,null,null,1]

{"sheet":"U8 - Intel Led Ops","index":12,"n_rows":5,"n_cols":13,"rows_kept":5,"cut":false,"hidden":false,"merged":[[0,6,0,11]]}
[null,null,null,null,null,null,"Counter-IED Capability Maturity Self-Assessment Tool"]
["Upstream Counter-IED Measures - Intelligence-Led Operations"]
[]
[]
[null,null,null,null,null,null,null,"Assessed Counter-IED Maturity Level:",null,null,null,null,1]

{"sheet":"D1 - IED Render Safe","index":13,"n_rows":5,"n_cols":13,"rows_kept":5,"cut":false,"hidden":false,"merged":[[0,6,0,11]]}
[null,null,null,null,null,null,"Counter-IED Capability Maturity Self-Assessment Tool"]
["Downstream Counter-IED Measures - IED Response (Render Safe)"]
[]
[]
[null,null,null,null,null,null,null,"Assessed Counter-IED Maturity Level:",null,null,null,null,1]

{"sheet":"D2 - IED Scene Expl","index":14,"n_rows":5,"n_cols":13,"rows_kept":5,"cut":false,"hidden":false,"merged":[[0,6,0,11]]}
[null,null,null,null,null,null,"Counter-IED Capability Maturity Self-Assessment Tool"]
["Downstream Counter-IED Measures - IED Response (Scene Exploitation)"]
[]
[]
[null,null,null,null,null,null,null,"Assessed Counter-IED Maturity Level:",null,null,null,null,1]

{"sheet":"D3 - Evidence Analysis","index":15,"n_rows":5,"n_cols":13,"rows_kept":5,"cut":false,"hidden":false,"merged":[[0,6,0,11]]}
[null,null,null,null,null,null,"Counter-IED Capability Maturity Self-Assessment Tool"]
["Downstream Counter-IED Measures - Recovered Evidence Analysis"]
[]
[]
[null,null,null,null,null,null,null,"Assessed Counter-IED Maturity Level:",null,null,null,null,1]

{"sheet":"D4 - Info Mgmt","index":16,"n_rows":5,"n_cols":13,"rows_kept":5,"cut":false,"hidden":false,"merged":[[0,6,0,11]]}
[null,null,null,null,null,null,"Counter-IED Capability Maturity Self-Assessment Tool"]
["Downstream Counter-IED Measures - Information Management"]
[]
[]
[null,null,null,null,null,null,null,"Assessed Counter-IED Maturity Level:",null,null,null,null,1]

{"sheet":"D5 - Tech Expl","index":17,"n_rows":5,"n_cols":13,"rows_kept":5,"cut":false,"hidden":false,"merged":[[0,6,0,11]]}
[null,null,null,null,null,null,"Counter-IED Capability Maturity Self-Assessment Tool"]
["Downstream Counter-IED Measures - Technical Exploitation of Recovered IEDs"]
[]
[]
[null,null,null,null,null,null,null,"Assessed Counter-IED Maturity Level:",null,null,null,null,1]

{"sheet":"D6 - ID of Perps","index":18,"n_rows":5,"n_cols":13,"rows_kept":5,"cut":false,"hidden":false,"merged":[[0,6,0,11]]}
[null,null,null,null,null,null,"Counter-IED Capability Maturity Self-Assessment Tool"]
["Downstream Counter-IED Measures - Identification of Perpetrators"]
[]
[]
[null,null,null,null,null,null,null,"Assessed Counter-IED Maturity Level:",null,null,null,null,1]

{"sheet":"D7 - Judicial Process","index":19,"n_rows":5,"n_cols":13,"rows_kept":5,"cut":false,"hidden":false,"merged":[[0,6,0,11]]}
[null,null,null,null,null,null,"Counter-IED Capability Maturity Self-Assessment Tool"]
["Downstream Counter-IED Measures - Judicial Process"]
[]
[]
[null,null,null,null,null,null,null,"Assessed Counter-IED Maturity Level:",null,null,null,null,1]

{"sheet":"D8 - Development of IED CM","index":20,"n_rows":5,"n_cols":13,"rows_kept":5,"cut":false,"hidden":false,"merged":[[0,6,0,11]]}
[null,null,null,null,null,null,"Counter-IED Capability Maturity Self-Assessment Tool"]
["Downstream Counter-IED Measures - Development of IED Countermeasures"]
[]
[]
[null,null,null,null,null,null,null,"Assessed Counter-IED Maturity Level:",null,null,null,null,1]